bitfinex/quotes_SOLUSD_20241029
["timestamp","ask_amount","ask_price","bid_price","bid_amount"]
[1730189795945,0.609393,180.48,180.4,52.661305]
[1730189796150,0.609393,180.48,180.46,7.55305125]
[1730189797757,0.609393,180.48,180.47,7.55305125]
[1730189799469,0.609393,180.48,180.46,7.55305125]
[1730189799669,0.609393,180.48,180.47,7.55305125]
[1730189801172,0.609393,180.48,180.41,23.776884]
[1730189801376,0.609393,180.48,180.47,7.55305125]
[1730189804364,0.609393,180.48,180.41,19.32993525]
[1730189804571,0.609393,180.48,180.47,7.55305125]
[1730189812962,0.609393,180.48,180.41,21.54932105]
[1730189813163,6.150193,180.48,180.36,28.66461956]
[1730189813365,6.150193,180.48,180.44,7.55305125]
[1730189813576,6.150193,180.48,180.37,2.21961845]
[1730189813577,0.609393,180.48,180.45,7.55305125]
[1730189815167,0.609393,180.48,180.44,7.55305125]
[1730189815556,0.609393,180.48,180.39,23.776884]
[1730189815778,0.609393,180.48,180.44,7.55305125]
[1730189817274,0.609393,180.48,180.43,7.55305125]
[1730189817461,6.150193,180.48,180.39,23.776884]
[1730189817661,6.150193,180.48,180.43,7.55305125]
[1730189818486,6.150193,180.48,180.44,7.55305125]
[1730189818681,6.150193,180.48,180.43,7.55305125]
[1730189819567,0.609393,180.48,180.44,7.55305125]
[1730189820168,0.609393,180.48,180.43,7.55305125]
[1730189820966,6.150193,180.48,180.42,7.55305125]
[1730189821165,6.150193,180.48,180.43,7.55305125]
[1730189824885,0.609393,180.48,180.46,7.55305125]
[1730189825278,0.609393,180.48,180.47,7.55305125]
[1730189825988,0.609393,180.48,180.46,7.55305125]
[1730189826486,0.609393,180.48,180.45,7.55305125]
[1730189826790,0.609393,180.48,180.46,7.55305125]
[1730189832390,0.609393,180.48,180.47,7.55305125]
[1730189836271,0.609393,180.48,180.46,7.55305125]
[1730189836981,6.150393,180.48,180.43,7.55305125]
[1730189837288,6.150393,180.48,180.44,7.55305125]
[1730189837493,6.150393,180.48,180.37,2.21974673]
[1730189837794,13.70344425,180.48,180.42,7.55305125]
[1730189838776,13.70344425,180.48,180.43,2.21956422]
[1730189838967,13.70344425,180.48,180.42,7.55305125]
[1730189839182,6.150393,180.48,180.43,7.55305125]
[1730189839908,6.150393,180.48,180.38,22.21971219]
[1730189840084,13.70344425,180.48,180.42,7.55305125]
[1730189840405,6.150393,180.48,180.43,7.55305125]
[1730189840878,13.70344425,180.48,180.42,7.55305125]
[1730189842198,6.150393,180.48,180.43,7.55305125]
[1730189843088,13.70344425,180.48,180.42,9.77280397]
[1730189843287,6.150393,180.48,180.42,7.55305125]
[1730189843484,6.150393,180.48,180.43,7.55305125]
[1730189843805,13.70344425,180.48,180.42,7.55305125]
[1730189847606,13.70344425,180.48,180.38,20.0]
[1730189847903,7.55305125,180.47,180.41,7.55305125]
[1730189848102,13.70344425,180.48,180.42,9.77280339]
[1730189848305,13.70344425,180.48,180.42,7.55305125]
[1730189849802,7.55305125,180.47,180.41,7.55305125]
[1730189850303,7.55305125,180.47,180.42,2.21977803]
[1730189850507,7.55305125,180.47,180.41,7.55305125]
[1730189851296,7.55305125,180.47,180.42,2.21978181]
[1730189851489,7.55305125,180.47,180.41,7.55305125]
[1730189851809,7.55305125,180.47,180.42,2.21978164]
[1730189851998,7.55305125,180.47,180.41,7.55305125]
[1730189852197,7.55305125,180.47,180.42,2.21978541]
[1730189852493,7.55305125,180.47,180.41,7.55305125]
[1730189852701,7.55305125,180.47,180.42,2.21978512]
[1730189852904,7.55305125,180.47,180.41,7.55305125]
[1730189853083,7.55305125,180.47,180.42,2.21978352]
[1730189853407,7.55305125,180.47,180.41,7.55305125]
[1730189854302,7.55305125,180.45,180.42,2.21982157]
[1730189854602,7.55305125,180.47,180.41,7.55305125]
[1730189855199,7.55305125,180.47,180.42,2.21981416]
[1730189855399,7.55305125,180.46,180.36,22.99917064]
[1730189855611,7.55305125,180.46,180.4,7.55305125]
[1730189855910,7.55305125,180.46,180.41,2.21984252]
[1730189856207,7.55305125,180.46,180.4,7.55305125]
[1730189856394,7.55305125,180.46,180.41,2.21987548]
[1730189856587,7.55305125,180.46,180.4,7.55305125]
[1730189856788,7.55305125,180.46,180.41,9.77292661]
[1730189856984,7.55305125,180.46,180.41,7.55305125]
[1730189857786,7.55305125,180.46,180.4,7.55305125]
[1730189858206,7.55305125,180.46,180.41,2.21986614]
[1730189858410,7.55305125,180.46,180.41,7.55305125]
[1730189858911,7.55305125,180.46,180.4,7.55305125]
[1730189859217,7.55305125,180.46,180.41,2.21987536]
[1730189859387,7.55305125,180.46,180.4,7.55305125]
[1730189859587,7.55305125,180.46,180.41,9.77292661]
[1730189859895,7.55305125,180.46,180.41,7.55305125]
[1730189861409,7.55305125,180.46,180.4,7.55305125]
[1730189861711,7.55305125,180.46,180.41,2.21987565]
[1730189861891,7.55305125,180.46,180.4,7.55305125]
[1730189862208,7.55305125,180.46,180.41,2.21987565]
[1730189862408,7.55305125,180.46,180.4,7.55305125]
[1730189862610,7.55305125,180.46,180.41,2.21987536]
[1730189862794,7.55305125,180.46,180.4,7.55305125]
[1730189862998,7.55305125,180.45,180.41,2.21987565]
[1730189863197,7.55305125,180.44,180.36,16.1618]
[1730189863394,7.55305125,180.43,180.37,9.77295515]
[1730189863707,7.55305125,180.42,180.38,2.2199039]
[1730189863887,7.55305125,180.42,180.39,2.2199039]
[1730189864087,7.55305125,180.43,180.4,2.2199039]
[1730189864332,7.55305125,180.44,180.38,7.55305125]
[1730189864507,13.09515125,180.44,180.39,2.22006116]
[1730189864697,13.09515125,180.44,180.38,7.55305125]
[1730189865012,7.55305125,180.43,180.39,2.22005054]
[1730189865208,7.55305125,180.43,180.4,2.22005054]
[1730189865416,7.55305125,180.43,180.33,6.83737064]
[1730189865609,7.55305125,180.43,180.37,7.55305125]
[1730189865812,7.55305125,180.43,180.38,2.22006027]
[1730189866110,7.55305125,180.43,180.39,2.22006027]
[1730189866315,7.55305125,180.43,180.37,7.55305125]
[1730189866521,7.55305125,180.43,180.38,2.22006059]
[1730189866708,7.55305125,180.43,180.39,2.22006059]
[1730189866913,7.55305125,180.43,180.37,7.55305125]
[1730189867116,7.55305125,180.43,180.38,2.22006117]
[1730189867318,7.55305125,180.43,180.39,2.22006117]
[1730189867494,7.55305125,180.43,180.37,7.55305125]
[1730189867792,7.55305125,180.43,180.38,2.22006117]
[1730189867993,7.55305125,180.43,180.39,2.22006117]
[1730189868218,13.09535125,180.43,180.37,7.55305125]
[1730189868404,7.55305125,180.42,180.38,2.22006059]
[1730189868604,7.55305125,180.42,180.39,2.22006059]
[1730189868822,13.09535125,180.43,180.37,7.55305125]
[1730189869118,13.09535125,180.43,180.38,2.22006088]
[1730189869413,13.09535125,180.43,180.39,2.22006088]
[1730189869719,13.09535125,180.43,180.37,7.55305125]
[1730189869909,13.09535125,180.43,180.38,2.22006117]
[1730189870098,13.09535125,180.43,180.39,2.22006117]
[1730189870299,13.09535125,180.43,180.37,7.55305125]
[1730189870502,7.55305125,180.42,180.38,2.22006059]
[1730189870699,7.55305125,180.42,180.37,7.55305125]
[1730189870700,7.55305125,180.42,180.39,2.22006059]
[1730189870921,7.55305125,180.42,180.37,7.55305125]
[1730189871122,7.55305125,180.42,180.38,2.22007498]
[1730189871323,7.55305125,180.42,180.39,2.22007498]
[1730189871625,7.55305125,180.42,180.37,7.55305125]
[1730189871800,7.55305125,180.42,180.38,2.22007428]
[1730189872001,7.55305125,180.42,180.39,2.22007428]
[1730189872300,7.55305125,180.42,180.37,7.55305125]
[1730189872603,7.55305125,180.42,180.38,2.22007486]
[1730189872804,13.09535125,180.43,180.39,2.22007486]
[1730189873124,13.09535125,180.43,180.37,7.55305125]
[1730189873309,13.09535125,180.43,180.38,2.22007588]
[1730189873530,13.09535125,180.43,180.39,2.22007588]
[1730189873714,13.09535125,180.43,180.37,7.55305125]
[1730189873900,13.09535125,180.43,180.38,2.22007588]
[1730189874224,13.09535125,180.43,180.39,2.22007588]
[1730189874525,13.09535125,180.43,180.37,7.55305125]
[1730189874724,13.09535125,180.43,180.38,2.22007646]
[1730189874897,13.09535125,180.43,180.39,2.22007646]
[1730189875098,13.09535125,180.43,180.37,7.55305125]
[1730189875317,7.55305125,180.41,180.38,2.22008596]
[1730189875619,7.55305125,180.41,180.36,7.55305125]
[1730189875928,7.55305125,180.41,180.37,2.22014351]
[1730189876117,7.55305125,180.42,180.38,2.22014351]
[1730189876316,7.55305125,180.42,180.36,7.55305125]
[1730189876519,7.55305125,180.42,180.37,2.22015331]
[1730189876717,7.55305125,180.41,180.38,2.22015331]
[1730189876907,7.55305125,180.41,180.36,7.55305125]
[1730189877226,7.55305125,180.41,180.37,2.2201536]
[1730189877426,7.55305125,180.41,180.38,2.2201536]
[1730189877623,7.55305125,180.41,180.39,2.22008453]
[1730189877810,7.55305125,180.41,180.36,7.55305125]
[1730189878125,7.55305125,180.39,180.37,2.2201422]
[1730189878308,7.55305125,180.39,180.34,7.55305125]
[1730189878515,7.55305125,180.39,180.35,2.22023914]
[1730189878711,7.55305125,180.39,180.36,2.22023914]
[1730189879011,7.55305125,180.39,180.37,2.22023914]
[1730189879322,7.55305125,180.4,180.34,7.55305125]
[1730189879532,7.55305125,180.4,180.35,2.22025545]
[1730189879822,7.55305125,180.4,180.36,2.22025545]
[1730189880022,7.55305125,180.4,180.37,2.22025545]
[1730189880328,7.55305125,180.4,180.35,7.55305125]
[1730189880631,7.55305125,180.4,180.36,2.22025684]
[1730189880832,7.55305125,180.4,180.37,2.22025684]
[1730189881036,7.55305125,180.4,180.35,7.55305125]
[1730189881219,7.55305125,180.4,180.36,2.22025684]
[1730189881529,7.55305125,180.4,180.37,2.22025468]
[1730189881705,13.09605125,180.41,180.35,7.55305125]
[1730189881910,13.09605125,180.41,180.36,2.22026809]
[1730189882229,13.09605125,180.41,180.35,7.55305125]
[1730189882414,13.09605125,180.41,180.36,2.22026223]
[1730189882615,7.55305125,180.4,180.37,2.22026223]
[1730189882813,7.55305125,180.4,180.35,7.55305125]
[1730189883012,7.55305125,180.4,180.36,2.2202665]
[1730189883315,7.55305125,180.4,180.35,7.55305125]
[1730189883507,7.55305125,180.4,180.36,2.22026527]
[1730189883710,7.55305125,180.4,180.35,7.55305125]
[1730189883916,7.55305125,180.4,180.36,2.22027479]
[1730189884222,7.55305125,180.41,180.37,2.22026044]
[1730189884525,22.98615125,180.42,180.36,7.55305125]
[1730189884729,22.98615125,180.42,180.37,9.77329598]
[1730189885024,15.4331,180.42,180.37,7.55305125]
[1730189885728,22.98615125,180.42,180.37,7.55305125]
[1730189886913,22.98615125,180.42,180.32,23.776884]
[1730189887121,7.55305125,180.41,180.35,7.55305125]
[1730189887312,7.55305125,180.41,180.36,2.22024588]
[1730189887513,7.55305125,180.41,180.35,7.55305125]
[1730189887728,7.55305125,180.41,180.36,2.22026044]
[1730189887915,7.55305125,180.41,180.35,7.55305125]
[1730189888127,13.09595125,180.41,180.36,2.22028479]
[1730189888433,13.09595125,180.41,180.35,7.55305125]
[1730189888621,13.09595125,180.41,180.36,2.22034033]
[1730189888802,13.09595125,180.41,180.35,7.55305125]
[1730189889003,13.09595125,180.41,180.36,2.22034033]
[1730189889201,13.09595125,180.41,180.35,7.55305125]
[1730189889430,13.09595125,180.41,180.36,2.22034218]
[1730189889606,13.09595125,180.41,180.35,7.55305125]
[1730189889806,13.09595125,180.41,180.36,2.22035141]
[1730189890130,13.09595125,180.41,180.35,7.55305125]
[1730189890335,7.55305125,180.39,180.31,16.4865]
[1730189890633,7.55305125,180.39,180.32,2.22043156]
[1730189890810,7.55305125,180.39,180.33,9.77348281]
[1730189891004,7.55305125,180.39,180.34,2.22043156]
[1730189891208,7.55305125,180.39,180.33,7.55305125]
[1730189891705,13.09685125,180.39,180.34,2.22060226]
[1730189892125,13.09685125,180.39,180.34,2.22060197]
[1730189892326,13.09685125,180.39,180.34,2.2205963]
[1730189893021,13.09685125,180.39,180.34,9.77364755]
[1730189893220,13.09685125,180.39,180.34,7.55305125]
[1730189895327,7.55305125,180.37,180.33,2.2205963]
[1730189895527,7.55305125,180.38,180.33,7.55305125]
[1730189895717,7.55305125,180.38,180.28,23.776884]
[1730189895916,7.55305125,180.38,180.33,7.55305125]
[1730189896117,7.55305125,180.38,180.28,23.776884]
[1730189896316,7.55305125,180.38,180.33,7.55305125]
[1730189897015,7.55305125,180.37,180.32,2.22062668]
[1730189897219,7.55305125,180.37,180.33,2.22062668]
[1730189897436,7.55305125,180.37,180.32,2.22062668]
[1730189897734,7.55305125,180.33,180.28,2.22085604]
[1730189898038,7.55305125,180.34,180.29,2.22085604]
[1730189898219,7.55305125,180.34,180.3,2.22085604]
[1730189898542,7.55305125,180.34,180.29,2.22091845]
[1730189898834,7.55305125,180.34,180.3,2.22091845]
[1730189899137,7.55305125,180.34,180.29,2.22091845]
[1730189899337,13.09795125,180.35,180.3,2.22092129]
[1730189899733,13.09795125,180.35,180.29,7.55305125]
[1730189900641,5.5444,180.36,180.3,7.55305125]
[1730189900835,7.55305125,180.35,180.24,23.776884]
[1730189901044,7.55305125,180.35,180.3,7.55305125]
[1730189901337,13.09745125,180.36,180.3,7.55305125]
[1730189901721,13.09745125,180.36,180.31,7.55305125]
[1730189901926,15.6028,180.37,180.33,7.55305125]
[1730189902738,13.09655125,180.4,180.34,7.55305125]
[1730189904239,5.5435,180.4,180.35,7.55305125]
[1730189905034,6.5808,180.41,180.36,7.55305125]
[1730189905237,15.7588,180.42,180.37,7.55305125]
[1730189905438,19.7085252,180.43,180.39,7.55305125]
[1730189905941,19.7085252,180.43,180.38,7.55305125]
[1730189906343,19.7085252,180.43,180.39,7.55305125]
[1730189906640,14.1662252,180.43,180.39,7.55305125]
[1730189907943,14.1662252,180.43,180.4,7.55305125]
[1730189909348,14.1662252,180.43,180.39,7.55305125]
[1730189910932,14.1662252,180.43,180.4,7.55305125]
[1730189913843,14.1662252,180.43,180.39,7.55305125]
[1730189914243,14.1662252,180.43,180.3,32.49599053]
[1730189914244,14.1662252,180.43,180.38,7.55305125]
[1730189916132,14.1662252,180.43,180.39,7.55305125]
[1730189916460,5.5421,180.44,180.39,7.55305125]
[1730189916833,13.09515125,180.44,180.39,7.55305125]
[1730189917735,13.09515125,180.44,180.38,7.55305125]
[1730189919936,7.55305125,180.43,180.37,7.55305125]
[1730189920135,7.55305125,180.43,180.31,43.776884]
[1730189920336,7.55305125,180.43,180.37,7.55305125]
[1730189921042,13.09515125,180.44,180.38,7.55305125]
[1730189928865,7.55305125,180.43,180.31,43.776884]
[1730189929161,7.55305125,180.43,180.38,7.55305125]
[1730189929660,7.55305125,180.44,180.38,7.55305125]
[1730189929863,5.5417,180.45,180.38,7.55305125]
[1730189929864,7.55305125,180.43,180.38,7.55305125]
[1730189930054,7.55305125,180.44,180.38,7.55305125]
[1730189931343,13.09505125,180.44,180.38,7.55305125]
[1730189933770,5.542,180.44,180.39,7.55305125]
[1730189934058,7.55305125,180.45,180.4,7.55305125]
[1730189934265,7.55305125,180.45,180.39,7.55305125]
[1730189934466,7.55305125,180.45,180.4,7.55305125]
[1730189934646,29.12165125,180.46,180.4,7.55305125]
[1730189935963,13.09485125,180.45,180.39,7.55305125]
[1730189938071,7.55305125,180.44,180.38,7.55305125]
[1730189939571,7.55305125,180.44,180.35,15.6656]
[1730189939770,7.55305125,180.44,180.38,7.55305125]
[1730189942669,7.55305125,180.44,180.31,23.776884]
[1730189942893,7.55305125,180.41,180.35,7.55305125]
[1730189943170,7.55305125,180.4,180.35,7.55305125]
[1730189943376,7.55305125,180.41,180.35,7.55305125]
[1730189943746,7.55305125,180.41,180.36,7.55305125]
[1730189944372,13.09575125,180.42,180.36,7.55305125]
[1730189944751,7.55305125,180.41,180.36,7.55305125]
[1730189944950,13.09595125,180.41,180.35,7.55305125]
[1730189945151,7.55305125,180.4,180.34,7.55305125]
[1730189945359,7.55305125,180.39,180.34,7.55305125]
[1730189945750,7.55305125,180.39,180.33,7.55305125]
[1730189945948,7.55305125,180.37,180.32,7.55305125]
[1730189946265,16.4322,180.4,180.32,7.55305125]
[1730189946452,7.55305125,180.38,180.32,7.55305125]
[1730189947767,7.55305125,180.37,180.32,7.55305125]
[1730189948455,13.09655125,180.39,180.33,7.55305125]
[1730189948658,7.55305125,180.38,180.32,7.55305125]
[1730189948857,7.55305125,180.37,180.29,15.7869]
[1730189949074,7.55305125,180.37,180.32,7.55305125]
[1730189949476,13.09715125,180.38,180.32,7.55305125]
[1730189950465,13.09715125,180.38,180.33,7.55305125]
[1730189950671,13.09715125,180.38,180.32,7.55305125]
[1730189950975,13.09715125,180.38,180.25,13.09529696]
[1730189950976,7.55305125,180.37,180.26,20.0]
[1730189951165,7.55305125,180.37,180.31,7.55305125]
[1730189951364,7.55305125,180.37,180.32,7.55305125]
[1730189952376,7.55305125,180.37,180.25,29.55759696]
[1730189952671,7.55305125,180.36,180.3,7.55305125]
[1730189953571,13.09755125,180.36,180.3,7.55305125]
[1730189957675,13.09755125,180.36,180.31,7.55305125]
[1730189958079,22.17894091,180.4,180.31,7.55305125]
[1730189958376,21.9755,180.4,180.35,7.55305125]
[1730189958553,21.9755,180.4,180.36,7.55305125]
[1730189958759,12.1913,180.43,180.36,7.55305125]
[1730189958956,19.74435125,180.43,180.38,7.55305125]
[1730189959174,7.55305125,180.41,180.32,15.8093]
[1730189959383,7.55305125,180.41,180.36,7.55305125]
[1730189960288,7.55305125,180.42,180.36,7.55305125]
[1730189961484,13.09595125,180.42,180.36,7.55305125]
[1730189963961,5.5423,180.43,180.39,7.55305125]
[1730189964685,5.5423,180.43,180.32,15.8093]
[1730189964686,13.09535125,180.43,180.38,7.55305125]
[1730189965185,5.5423,180.43,180.38,7.55305125]
[1730189969082,13.09535125,180.43,180.37,7.55305125]
[1730189969866,7.55305125,180.41,180.35,7.55305125]
[1730189970183,7.55305125,180.42,180.36,7.55305125]
[1730189972281,5.5429,180.41,180.36,7.55305125]
[1730189973494,15.7081,180.44,180.37,7.55305125]
[1730189973788,13.09555125,180.43,180.38,7.55305125]
[1730189974082,5.78875806,180.46,180.4,7.55305125]
[1730189974387,13.34180931,180.46,180.4,7.55305125]
[1730189975193,18.88320931,180.46,180.4,7.55305125]
[1730189975394,7.55305125,180.44,180.39,7.55305125]
[1730189975581,11.33015806,180.46,180.39,7.55305125]
[1730189975779,7.55305125,180.44,180.39,7.55305125]
[1730189976295,7.55305125,180.45,180.39,7.55305125]
[1730189976796,5.542,180.44,180.39,7.55305125]
[1730189979296,5.542,180.44,180.4,7.55305125]
[1730189980706,5.5417,180.45,180.4,7.55305125]
[1730189987800,13.09475125,180.45,180.39,7.55305125]
[1730189988302,7.55305125,180.43,180.37,7.55305125]
[1730189989103,5.5426,180.42,180.37,7.55305125]
[1730189989284,5.5426,180.42,180.32,15.8093]
[1730189989485,13.09565125,180.42,180.36,7.55305125]
[1730189989885,7.55305125,180.41,180.35,7.55305125]
[1730189990282,5.5426,180.42,180.37,7.55305125]
[1730189990802,13.09565125,180.42,180.32,15.8093]
[1730189991000,13.09565125,180.42,180.36,7.55305125]
[1730189991804,5.5426,180.42,180.38,7.55305125]
[1730189992010,5.5417,180.45,180.41,7.55305125]
[1730189996702,5.5417,180.45,180.4,7.55305125]
[1730189997712,5.5417,180.45,180.41,7.55305125]
[1730189999002,5.78875806,180.46,180.43,7.55305125]
[1730189999308,5.541,180.47,180.42,7.55305125]
[1730190000211,13.09405125,180.47,180.41,7.55305125]
[1730190001203,5.541,180.47,180.42,7.55305125]
[1730190004516,5.541,180.47,180.39,7.55305125]
[1730190004517,7.55305125,180.45,180.39,7.55305125]
[1730190004689,7.55305125,180.45,180.4,7.55305125]
[1730190005013,5.541,180.47,180.4,7.55305125]
[1730190005305,7.55305125,180.46,180.4,7.55305125]
[1730190005507,7.55305125,180.45,180.4,7.55305125]
[1730190006283,7.55305125,180.45,180.34,23.776884]
[1730190006497,7.55305125,180.41,180.33,6.81379696]
[1730190006707,7.55305125,180.41,180.36,7.55305125]
[1730190007312,7.55305125,180.4,180.34,7.55305125]
[1730190007812,13.09635125,180.4,180.34,7.55305125]
[1730190007986,13.09635125,180.4,180.32,15.8093]
[1730190007987,5.5433,180.4,180.35,7.55305125]
[1730190008192,7.55305125,180.39,180.33,7.55305125]
[1730190009097,13.09685125,180.38,180.32,7.55305125]
[1730190009694,5.5438,180.38,180.33,7.55305125]
[1730190009893,11.9654,180.46,180.37,7.55305125]
[1730190010099,5.5414,180.46,180.41,7.55305125]
[1730190010397,13.09445125,180.46,180.4,7.55305125]
[1730190011811,5.5414,180.46,180.4,7.55305125]
[1730190012001,5.5411,180.47,180.43,7.55305125]
[1730190012208,5.5411,180.47,180.42,7.55305125]
[1730190014797,13.09415125,180.47,180.36,23.776884]
[1730190014999,13.09415125,180.47,180.41,7.55305125]
[1730190015513,7.55305125,180.46,180.4,7.55305125]
[1730190017517,5.5417,180.45,180.41,7.55305125]
[1730190018514,5.541,180.47,180.42,7.55305125]
[1730190018728,7.55305125,180.46,180.41,7.55305125]
[1730190020112,5.5417,180.45,180.41,7.55305125]
[1730190021529,5.5417,180.45,180.35,16.3838]
[1730190021721,5.5417,180.45,180.4,7.55305125]
[1730190026723,13.09475125,180.45,180.4,7.55305125]
[1730190026924,7.55305125,180.43,180.35,16.3838]
[1730190027226,5.5426,180.42,180.37,7.55305125]
[1730190028015,13.09565125,180.42,180.36,7.55305125]
[1730190028219,7.55305125,180.41,180.35,7.55305125]
[1730190029206,7.55305125,180.39,180.33,7.55305125]
[1730190029409,5.5432,180.4,180.28,6.1888]
[1730190029709,7.55305125,180.37,180.31,7.55305125]
[1730190030026,5.5432,180.4,180.32,7.55305125]
[1730190030229,7.55305125,180.38,180.32,7.55305125]
[1730190030409,7.55305125,180.37,180.32,7.55305125]
[1730190030613,7.55305125,180.35,180.3,7.55305125]
[1730190031023,7.55305125,180.36,180.3,7.55305125]
[1730190031510,7.55305125,180.33,180.23,22.7383]
[1730190031715,7.55305125,180.32,180.27,7.55305125]
[1730190031913,7.55305125,180.32,180.26,7.55305125]
[1730190032724,7.55305125,180.3,180.23,22.7383]
[1730190032916,7.55305125,180.3,180.25,7.55305125]
[1730190033227,7.55305125,180.29,180.24,7.55305125]
[1730190033437,7.55305125,180.28,180.22,7.55305125]
[1730190033818,7.55305125,180.27,180.21,7.55305125]
[1730190034737,13.10055125,180.27,180.21,7.55305125]
[1730190035414,5.5475,180.27,180.22,7.55305125]
[1730190036016,5.5475,180.27,180.23,7.55305125]
[1730190036228,7.55305125,180.28,180.23,7.55305125]
[1730190036430,22.60605125,180.3,180.25,7.55305125]
[1730190036610,13.09925125,180.31,180.25,7.55305125]
[1730190041833,7.55305125,180.31,180.25,7.55305125]
[1730190042020,13.09865125,180.33,180.27,7.55305125]
[1730190042331,7.55305125,180.32,180.26,7.55305125]
[1730190043334,13.09875125,180.32,180.26,7.55305125]
[1730190043522,13.09875125,180.32,180.27,7.55305125]
[1730190044531,7.55305125,180.33,180.28,7.55305125]
[1730190044932,13.09845125,180.33,180.28,7.55305125]
[1730190047243,13.09845125,180.33,180.27,7.55305125]
[1730190048027,7.55305125,180.32,180.27,7.55305125]
[1730190048337,7.55305125,180.32,180.21,23.776884]
[1730190048516,7.55305125,180.29,180.23,7.55305125]
[1730190048723,7.55305125,180.28,180.23,7.55305125]
[1730190049435,7.55305125,180.26,180.21,7.55305125]
[1730190049736,7.55305125,180.26,180.2,7.55305125]
[1730190050540,7.55305125,180.26,180.21,7.55305125]
[1730190051523,13.10035125,180.27,180.22,7.55305125]
[1730190052237,5.5463,180.3,180.24,7.55305125]
[1730190052538,13.09935125,180.3,180.24,7.55305125]
[1730190053041,7.55305125,180.29,180.23,7.55305125]
[1730190053539,7.55305125,180.28,180.23,7.55305125]
[1730190053843,7.55305125,180.27,180.22,7.55305125]
[1730190054044,7.55305125,180.26,180.2,7.55305125]
[1730190054542,7.55305125,180.24,180.17,16.6548]
[1730190054838,7.55305125,180.24,180.19,7.55305125]
[1730190055030,7.55305125,180.25,180.19,7.55305125]
[1730190056038,13.10095125,180.25,180.19,7.55305125]
[1730190056425,7.55305125,180.22,180.16,194.3623]
[1730190056622,7.55305125,180.24,180.18,7.55305125]
[1730190057346,7.55305125,180.24,180.19,7.55305125]
[1730190059848,7.55305125,180.25,180.19,7.55305125]
[1730190061845,13.10095125,180.25,180.19,7.55305125]
[1730190062031,7.55305125,180.24,180.19,7.55305125]
[1730190062530,7.55305125,180.23,180.16,194.3623]
[1730190062831,7.55305125,180.23,180.18,7.55305125]
[1730190063044,7.55305125,180.21,180.16,194.3623]
[1730190064224,15.6799,180.27,180.17,7.55305125]
[1730190064430,7.55305125,180.25,180.2,7.55305125]
[1730190064833,7.55305125,180.25,180.19,7.55305125]
[1730190067328,7.55305125,180.25,180.2,7.55305125]
[1730190067531,13.10085125,180.25,180.2,7.55305125]
[1730190068238,13.10055125,180.26,180.21,7.55305125]
[1730190068745,21.2272,180.27,180.21,7.55305125]
[1730190068930,28.78025125,180.27,180.21,7.55305125]
[1730190069744,5.5469,180.28,180.23,7.55305125]
[1730190071144,13.09995125,180.28,180.22,7.55305125]
[1730190071455,7.55305125,180.27,180.21,7.55305125]
[1730190072652,13.10035125,180.27,180.21,7.55305125]
[1730190072962,7.55305125,180.26,180.21,7.55305125]
[1730190073253,5.5473,180.27,180.22,7.55305125]
[1730190073436,5.5473,180.27,180.23,7.55305125]
[1730190074258,5.5463,180.3,180.25,7.55305125]
[1730190075352,13.09935125,180.3,180.25,7.55305125]
[1730190076457,13.09935125,180.3,180.18,16.1373]
[1730190076657,13.09935125,180.3,180.25,7.55305125]
[1730190078046,20.9347,180.31,180.26,7.55305125]
[1730190078441,28.48775125,180.31,180.26,7.55305125]
[1730190079960,28.48775125,180.31,180.25,7.55305125]
[1730190083143,28.48775125,180.31,180.26,7.55305125]
[1730190084163,7.55305125,180.3,180.25,7.55305125]
[1730190084539,7.55305125,180.27,180.22,7.55305125]
[1730190085455,5.5475,180.26,180.22,7.55305125]
[1730190085658,13.10055125,180.26,180.21,7.55305125]
[1730190086048,7.55305125,180.25,180.19,7.55305125]
[1730190086969,7.55305125,180.25,180.2,7.55305125]
[1730190087664,13.10095125,180.25,180.2,7.55305125]
[1730190090163,13.10095125,180.25,180.19,7.55305125]
[1730190090756,7.55305125,180.24,180.19,7.55305125]
[1730190092062,7.55305125,180.25,180.2,7.55305125]
[1730190092766,7.55305125,180.25,180.19,7.55305125]
[1730190093363,7.55305125,180.25,180.18,16.1373]
[1730190093567,7.55305125,180.23,180.16,200.6229]
[1730190093865,7.55305125,180.23,180.18,7.55305125]
[1730190095168,7.55305125,180.21,180.16,201.91535125]
[1730190097771,7.55305125,180.21,180.16,194.3623]
[1730190098071,7.55305125,180.21,180.16,201.91535125]
[1730190098451,13.10135125,180.24,180.18,7.55305125]
[1730190098772,16.4448,180.25,180.2,7.55305125]
[1730190098949,13.10085125,180.26,180.2,7.55305125]
[1730190099965,7.55305125,180.24,180.19,7.55305125]
[1730190103064,7.55305125,180.24,180.18,7.55305125]
[1730190105062,5.5472,180.27,180.19,7.55305125]
[1730190105262,7.55305125,180.25,180.2,7.55305125]
[1730190106376,7.55305125,180.24,180.19,7.55305125]
[1730190106678,7.55305125,180.23,180.17,7.55305125]
[1730190107069,7.55305125,180.23,180.16,194.3623]
[1730190107070,7.55305125,180.19,180.16,194.3623]
[1730190107571,7.55305125,180.2,180.16,194.3623]
[1730190107752,7.55305125,180.21,180.16,194.3623]